bitfinex/quotes_SOLUSD_20240922
["timestamp","ask_amount","ask_price","bid_price","bid_amount"]
[1727044689918,0.252348,143.5,143.48,30.746484]
[1727044690101,0.252348,143.5,143.49,6.9691]
[1727044690296,0.252348,143.5,143.49,29.748]
[1727044690502,0.252348,143.5,143.49,53.524884]
[1727044690815,0.252348,143.5,143.49,53.775864]
[1727044691188,0.252348,143.5,143.49,46.806764]
[1727044691811,0.252348,143.5,143.49,23.41321649]
[1727044692013,0.252348,143.5,143.49,22.7789]
[1727044693209,0.0899077,143.52,143.51,24.3884]
[1727044693430,0.3146006,143.54,143.53,50.994964]
[1727044693591,0.3146006,143.54,143.53,28.60923757]
[1727044693795,0.3146006,143.54,143.53,50.994964]
[1727044694388,0.252348,143.58,143.57,7.09069]
[1727044694591,0.252348,143.58,143.57,7.21618]
[1727044694906,0.0899077,143.6,143.59,30.992064]
[1727044695103,0.0899077,143.6,143.59,50.992064]
[1727044695418,0.3146006,143.71,143.59,50.992064]
[1727044695419,0.2736038,143.64,143.63,7.08749]
[1727044695597,0.3956244,143.64,143.63,7.08749]
[1727044696525,0.3956244,143.64,143.63,0.12549]
[1727044696810,0.3956244,143.64,143.62,17.407]
[1727044696986,0.3956244,143.64,143.63,0.25098]
[1727044697389,0.3956244,143.64,143.62,24.3697]
[1727044698540,0.3956244,143.64,143.61,0.12549]
[1727044699029,0.3956244,143.64,143.62,6.9627]
[1727044699233,0.3956244,143.64,143.63,24.027864]
[1727044700740,0.3956244,143.64,143.63,0.12549]
[1727044701437,0.3956244,143.64,143.63,7.08779]
[1727044702034,0.3956244,143.64,143.63,7.21328]
[1727044702428,0.3956244,143.64,143.63,31.62043224]
[1727044702620,0.3956244,143.64,143.63,51.62043224]
[1727044703212,0.3956244,143.64,143.63,50.990164]
[1727044703814,0.3956244,143.64,143.63,68.395964]
[1727044704539,0.3635115,143.69,143.68,24.61058]
[1727044705051,0.3635115,143.69,143.68,17.65068]
[1727044705246,0.3635115,143.69,143.68,24.61058]
[1727044705641,0.3635115,143.69,143.68,17.65068]
[1727044705944,0.3635115,143.69,143.68,17.52519]
[1727044706653,0.3635115,143.69,143.68,17.3997]
[1727044708031,0.3635115,143.69,143.68,48.387464]
[1727044708353,0.0622526,143.71,143.7,50.986764]
[1727044708767,0.0622526,143.71,143.7,74.24389734]
[1727044708949,0.2736038,143.74,143.73,48.378964]
[1727044711063,0.2736038,143.74,143.73,68.378964]
[1727044711557,0.3635115,143.78,143.77,53.198764]
[1727044711849,0.3635115,143.78,143.77,73.198764]
[1727044712243,0.3635115,143.78,143.77,46.243264]
[1727044712633,0.3635115,143.78,143.77,73.198764]
[1727044713149,0.0899077,143.85,143.77,73.198764]
[1727044713150,34.7404,143.93,143.79,6.9545]
[1727044713355,0.512798,143.86,143.82,0.25098]
[1727044714629,0.512798,143.86,143.81,23.776884]
[1727044714830,6.9517,143.85,143.81,0.25098]
[1727044715042,6.9517,143.85,143.81,0.12549]
[1727044715527,6.9517,143.85,143.8,23.902374]
[1727044715755,0.512798,143.86,143.81,6.9534]
[1727044715942,0.512798,143.86,143.8,30.856374]
[1727044716138,0.512798,143.86,143.81,17.3831]
[1727044716342,0.512798,143.86,143.84,0.12549]
[1727044716528,0.512798,143.86,143.84,30.979964]
[1727044717344,0.3133188,143.89,143.87,6.9505]
[1727044717544,0.3133188,143.89,143.88,50.978064]
[1727044717859,7.0085526,143.97,143.88,50.978064]
[1727044717860,6.9464,143.96,143.91,0.12549]
[1727044718067,6.9464,143.96,143.91,1.63809811]
[1727044718252,0.0622526,143.97,143.91,1.51260811]
[1727044718565,0.0622526,143.97,143.93,7.07329]
[1727044718854,0.0622526,143.97,143.96,30.974164]
[1727044719055,0.0622526,143.97,143.95,17.3666]
[1727044719266,0.0622526,143.97,143.94,6.9468]
[1727044719267,0.0622526,143.97,143.94,44.027864]
[1727044719564,0.0622526,143.97,143.93,6.2442]
[1727044719730,6.9464,143.96,143.91,17.3711]
[1727044719934,6.947,143.95,143.9,0.12549]
[1727044720132,6.9474,143.94,143.89,6.2442]
[1727044720334,6.9473,143.95,143.89,6.2442]
[1727044720552,0.0622526,143.97,143.89,6.2442]
[1727044720553,0.0622526,143.97,143.9,17.49779]
[1727044720757,7.0080526,143.97,143.92,6.9481]
[1727044720964,7.0080526,143.97,143.9,17.49779]
[1727044721166,0.0622526,143.97,143.93,17.3691]
[1727044721462,0.0622526,143.97,143.95,6.9467]
[1727044721833,0.0622526,143.97,143.94,24.027864]
[1727044722060,0.0622526,143.97,143.96,30.974164]
[1727044723037,0.0622526,143.97,143.96,0.25098]
[1727044723786,0.0622526,143.97,143.94,23.902374]
[1727044724064,0.0622526,143.97,143.95,0.12549]
[1727044724253,0.0622526,143.97,143.95,7.07229]
[1727044724566,0.0622526,143.97,143.96,7.07179]
[1727044724861,0.0622526,143.97,143.96,67.102264]
[1727044725367,0.0899077,144.02,143.97,50.146574]
[1727044725556,50.0,144.17,143.97,50.146574]
[1727044725557,0.0899077,144.11,144.02,20.0]
[1727044725764,0.0899077,144.11,144.03,24.027864]
[1727044725950,0.0899077,144.11,144.05,24.027864]
[1727044726152,0.3722283,144.11,144.05,0.25098]
[1727044726850,0.3722283,144.11,144.05,7.19248]
[1727044727050,0.3722283,144.11,144.06,6.9413]
[1727044727243,0.3722283,144.11,144.08,6.9404]
[1727044727572,0.3722283,144.11,144.09,7.19078]
[1727044727880,0.3722283,144.11,144.06,22.6356]
[1727044727881,0.5704212,144.14,144.13,7.18908]
[1727044728549,0.5704212,144.14,144.1,0.12549]
[1727044728778,0.5704212,144.14,144.04,8.75208377]
[1727044728779,6.9384,144.13,144.04,6.9422]
[1727044729086,0.5704212,144.14,144.03,24.2994]
[1727044729364,7.5083212,144.14,144.05,6.9418]
[1727044729573,6.9384,144.13,144.03,17.3566]
[1727044729754,0.5704212,144.14,144.03,17.3566]
[1727044729955,0.5704212,144.14,144.06,6.9412]
[1727044730373,0.5704212,144.14,144.07,6.9408]
[1727044730570,0.5704212,144.14,144.1,6.9393]
[1727044730873,0.5704212,144.14,144.11,1.05769252]
[1727044731041,0.5704212,144.14,144.11,0.25098]
[1727044731458,0.5704212,144.14,144.12,6.9383]
[1727044731769,0.5704212,144.14,144.13,44.027864]
[1727044732150,0.0899077,144.19,144.13,44.027864]
[1727044732449,0.0899077,144.19,144.18,0.12549]
[1727044732676,0.0899077,144.19,144.17,6.9358]
[1727044732677,0.0899077,144.19,144.17,0.12549]
[1727044732849,0.0899077,144.19,144.14,0.12549]
[1727044733671,0.0899077,144.19,144.15,6.9369]
[1727044733876,0.0899077,144.19,144.13,0.25098]
[1727044734242,0.0899077,144.19,144.14,6.9375]
[1727044734549,0.0899077,144.19,144.13,30.965864]
[1727044734758,0.0899077,144.19,144.14,6.9375]
[1727044734960,0.0899077,144.19,144.15,7.06249]
[1727044735193,0.0899077,144.19,144.16,0.12549]
[1727044735403,0.0899077,144.19,144.16,0.25098]
[1727044736100,0.0899077,144.19,144.17,6.9361]
[1727044736278,0.0899077,144.19,144.18,0.25098]
[1727044736691,0.0899077,144.19,144.14,17.3433]
[1727044736891,0.0899077,144.19,144.15,0.25098]
[1727044737092,0.0899077,144.19,144.13,23.902374]
[1727044737390,0.0899077,144.19,144.16,7.06209]
[1727044737881,0.0899077,144.19,144.16,0.12549]
[1727044738200,0.0899077,144.19,144.12,23.9275]
[1727044738369,6.9361,144.18,144.11,22.9929]
[1727044738569,0.0899077,144.19,144.11,22.9929]
[1727044738570,7.0253077,144.19,144.12,6.9386]
[1727044738797,0.0899077,144.19,144.13,6.9379]
[1727044739170,0.0899077,144.19,144.16,6.9365]
[1727044739379,0.0899077,144.19,144.11,16.0539]
[1727044739582,0.0899077,144.19,144.14,6.9376]
[1727044739787,0.0899077,144.19,144.11,33.4015]
[1727044740201,7.0252077,144.19,144.11,33.4015]
[1727044740405,6.9363,144.17,144.07,23.9339]
[1727044740699,6.9377,144.14,144.07,17.3522]
[1727044740885,20.0899077,144.19,144.03,17.3572]
[1727044741088,17.3411,144.17,144.03,17.3572]
[1727044741297,6.9382,144.13,144.06,6.9413]
[1727044741492,20.0899077,144.19,144.06,6.9413]
[1727044741493,6.9376,144.15,144.06,6.9413]
[1727044742087,6.9378,144.14,144.04,6.942]
[1727044742394,6.9387,144.12,144.03,17.3572]
[1727044742595,17.3399,144.18,144.03,17.3572]
[1727044742596,6.9379,144.14,144.03,17.3572]
[1727044742797,20.0899077,144.19,144.1,6.9395]
[1727044742986,0.0899077,144.19,144.09,17.3497]
[1727044743396,6.9363,144.17,144.09,24.2897]
[1727044743700,0.0899077,144.19,144.09,24.2897]
[1727044743905,0.0899077,144.19,144.1,0.12549]
[1727044744105,0.0899077,144.19,144.12,6.9385]
[1727044744313,0.0899077,144.19,144.13,24.027864]
[1727044744607,0.0899077,144.19,144.13,7.18908]
[1727044744778,0.0899077,144.19,144.15,0.25098]
[1727044746005,0.0899077,144.19,144.13,24.027864]
[1727044746334,0.0899077,144.19,144.08,24.2905]
[1727044746483,6.9367,144.17,144.08,24.2905]
[1727044746888,6.9372,144.15,144.08,17.3504]
[1727044747090,0.0899077,144.19,144.06,6.2495]
[1727044747410,6.9391,144.11,144.04,17.3555]
[1727044748284,17.3431,144.15,144.01,6.2495]
[1727044748693,6.9395,144.11,144.03,6.9425]
[1727044748885,6.9397,144.1,144.02,6.9433]
[1727044749210,6.9397,144.1,144.01,6.2495]
[1727044749422,17.3431,144.15,144.0,33.4815]
[1727044749423,6.9406,144.08,144.0,33.4815]
[1727044750011,6.9405,144.09,144.01,6.9439]
[1727044750223,6.9406,144.08,144.0,40.4259]
[1727044750427,6.9406,144.08,144.01,6.9438]
[1727044750641,6.9406,144.08,144.0,17.36]
[1727044750924,17.3466,144.12,144.0,24.3043]
[1727044751309,6.941,144.08,144.0,24.3043]
[1727044751518,6.9411,144.07,144.0,24.3043]
[1727044751734,6.942,144.05,143.97,17.3646]
[1727044751900,6.9415,144.06,143.97,17.3646]
[1727044752221,6.9421,144.05,143.97,24.3104]
[1727044752424,17.3466,144.12,144.01,6.9436]
[1727044752425,6.9402,144.09,144.01,6.9436]
[1727044752622,6.9401,144.09,144.0,17.3604]
[1727044752927,20.0,144.14,143.96,40.9798]
[1727044752928,6.9396,144.11,144.04,6.9424]
[1727044753124,6.9391,144.11,144.04,6.9424]
[1727044753325,6.9386,144.12,144.03,17.3574]
[1727044753515,6.9386,144.12,144.04,0.25098]
[1727044753716,6.9393,144.11,144.04,0.12549]
[1727044754020,6.3996,144.16,144.08,17.3504]
[1727044754215,6.9378,144.14,144.08,17.3504]
[1727044754637,0.0899077,144.19,144.09,24.027864]
[1727044754798,6.9357,144.18,144.11,0.12549]
[1727044755223,6.9364,144.17,144.09,7.06539]
[1727044755430,6.9364,144.17,144.1,0.12549]
[1727044756013,6.9369,144.16,144.1,0.12549]
[1727044756213,6.9362,144.17,144.1,0.12549]
[1727044756742,0.0899077,144.19,144.12,20.25098]
[1727044757024,0.0899077,144.19,144.18,0.12549]
[1727044757399,0.0899077,144.19,144.17,6.9362]
[1727044757805,0.0899077,144.19,144.16,0.25098]
[1727044758614,0.0899077,144.19,144.18,0.25098]
[1727044758816,0.0899077,144.19,144.18,30.963564]
[1727044760923,0.0899077,144.19,144.18,0.25098]
[1727044761622,0.0899077,144.19,144.18,7.18668]
[1727044761830,0.0899077,144.19,144.18,30.963564]
[1727044762738,0.5704212,144.23,144.22,48.296264]
[1727044764209,0.0899077,144.28,144.23,43.902374]
[1727044764410,0.0899077,144.28,144.27,24.51098]
[1727044764609,0.0899077,144.28,144.27,48.287864]
[1727044764830,0.5704212,144.31,144.3,7.18098]
[1727044765016,0.5704212,144.31,144.3,32.34238045]
[1727044765417,0.5704212,144.31,144.3,30.957864]
[1727044765616,0.5704212,144.31,144.3,50.957864]
[1727044766117,0.0899077,144.36,144.3,50.957864]
[1727044766118,0.0899077,144.36,144.35,6.9276]
[1727044766439,0.0899077,144.36,144.35,30.704484]
[1727044766613,0.0899077,144.36,144.35,6.9276]
[1727044766819,0.0899077,144.36,144.35,30.704484]
[1727044768133,0.0899077,144.36,144.35,0.25098]
[1727044768333,0.0899077,144.36,144.3,17.3242]
[1727044769043,0.0899077,144.36,144.3,24.254]
[1727044769330,0.0899077,144.36,144.3,17.3242]
[1727044770617,0.0899077,144.36,144.21,34.6706]
[1727044770618,0.0899077,144.36,144.26,24.2603]
[1727044770823,6.929,144.33,144.26,17.3286]
[1727044771045,0.0899077,144.36,144.32,17.3225]
[1727044771249,0.0899077,144.36,144.28,17.3267]
[1727044771918,0.0899077,144.36,144.3,6.9299]
[1727044772118,0.0899077,144.36,144.34,6.9276]
[1727044772332,0.0899077,144.36,144.34,0.12549]
[1727044773076,0.0899077,144.36,144.33,24.2484]
[1727044774028,0.0899077,144.36,144.35,6.9276]
[1727044774250,0.0899077,144.36,144.35,30.955464]
[1727044774462,0.0899077,144.36,144.35,32.34017058]
[1727044774638,0.0899077,144.36,144.35,7.17858]
[1727044775264,0.0899077,144.36,144.35,6.9276]
[1727044775659,0.0899077,144.36,144.34,0.25098]
[1727044775868,0.0899077,144.36,144.3,0.12549]
[1727044776078,0.0899077,144.36,144.35,6.9276]
[1727044776372,0.0899077,144.36,144.35,7.05309]
[1727044776763,0.0899077,144.36,144.35,6.9276]
[1727044776966,0.0899077,144.36,144.35,7.05309]
[1727044777268,0.0899077,144.36,144.34,24.2472]
[1727044777552,0.0899077,144.36,144.35,7.17858]
[1727044777769,0.0899077,144.36,144.35,30.955464]
[1727044778139,0.0899077,144.36,144.35,43.72038]
[1727044778336,0.0899077,144.36,144.35,67.497264]
[1727044781465,0.5704212,144.4,144.39,58.8682]
[1727044781671,0.5704212,144.4,144.39,102.896064]
[1727044782164,0.5704212,144.4,144.39,68.267664]
[1727044782462,0.0899077,144.44,144.43,48.009984]
[1727044782647,0.0899077,144.44,144.43,68.009984]
[1727044782960,0.0899077,144.44,144.43,84.551784]
[1727044783745,0.0899077,144.44,144.43,85.35025536]
[1727044784264,0.5704212,144.49,144.48,48.001584]
[1727044784564,0.5704212,144.49,144.48,48.127074]
[1727044784743,0.5704212,144.49,144.44,37.3077]
[1727044784943,0.5704212,144.49,144.45,6.9224]
[1727044785138,0.5704212,144.49,144.46,0.12549]
[1727044785367,0.5704212,144.49,144.47,24.2253]
[1727044785565,0.5704212,144.49,144.48,23.902374]
[1727044786335,0.5704212,144.49,144.48,24.027864]
[1727044786544,0.3196212,144.49,144.48,44.027864]
[1727044788645,0.3196212,144.49,144.48,50.949164]
[1727044788845,6.0971501,144.57,144.48,50.949164]
[1727044789048,6.9179,144.56,144.47,24.2253]
[1727044789262,20.0,144.59,144.47,24.2253]
[1727044789456,20.0899077,144.61,144.5,17.3005]
[1727044789965,6.9166,144.58,144.51,6.9196]
[1727044790346,20.0899077,144.61,144.5,17.42599]
[1727044790666,6.9161,144.59,144.51,0.12549]
[1727044791061,6.9161,144.59,144.52,6.9194]
[1727044791469,27.0052077,144.61,144.51,0.12549]
[1727044791772,6.9157,144.6,144.52,6.9194]
[1727044792066,6.9161,144.59,144.52,6.9194]
[1727044792648,0.0899077,144.61,144.53,17.42289]
[1727044792963,0.0899077,144.61,144.54,0.12549]
[1727044793175,0.0899077,144.61,144.53,24.2159]
[1727044793462,6.9156,144.6,144.53,24.2159]
[1727044794262,0.0899077,144.61,144.47,34.6091]
[1727044794263,0.0899077,144.61,144.49,17.3012]
[1727044794463,0.0899077,144.61,144.49,24.2216]
[1727044795051,6.918,144.55,144.49,17.3012]
[1727044795552,20.0,144.58,144.45,17.3061]
[1727044795766,21.7718,144.6,144.44,6.045]
[1727044795767,20.0,144.56,144.44,6.045]
[1727044795973,20.0,144.58,144.43,16.5418]
[1727044796155,20.0,144.54,144.42,17.3105]
[1727044796356,6.9209,144.49,144.42,24.2346]
[1727044797076,6.9204,144.51,144.43,6.9233]
[1727044797282,6.9204,144.51,144.42,17.3105]
[1727044797571,6.9194,144.52,144.46,6.9222]
[1727044797773,6.9169,144.58,144.43,78.645964]
[1727044797963,17.3778077,144.61,144.45,24.027864]
[1727044798172,17.3778077,144.61,144.47,24.027864]
[1727044798358,17.3778077,144.61,144.49,24.222]
[1727044799175,17.3778077,144.61,144.48,6.9213]
[1727044799381,17.2916,144.58,144.45,17.3059]
[1727044799772,0.0899077,144.61,144.48,17.3029]
[1727044799963,0.0899077,144.61,144.49,20.0]
[1727044800167,0.0899077,144.61,144.56,6.9174]
[1727044800478,0.0899077,144.61,144.55,17.2938]
[1727044800479,0.0899077,144.61,144.57,17.2914]
[1727044800666,0.0899077,144.61,144.58,6.9165]
[1727044800866,0.0899077,144.61,144.6,6.9156]
[1727044801076,0.0899077,144.61,144.59,17.2892]
[1727044801363,0.0899077,144.61,144.59,0.12549]
[1727044801568,0.0899077,144.61,144.59,7.04109]
[1727044801759,7.0050077,144.61,144.54,6.9184]
[1727044801965,0.0899077,144.61,144.52,6.045]
[1727044802162,0.0899077,144.61,144.57,6.917]
[1727044802367,0.0899077,144.61,144.58,1.38285946]
[1727044802885,0.0899077,144.61,144.56,17.2936]
[1727044803188,0.5704212,144.66,144.52,6.045]
[1727044803189,0.5704212,144.66,144.65,6.9132]
[1727044803361,0.5704212,144.66,144.65,24.1962]
[1727044804075,0.5704212,144.66,144.65,54.352574]
[1727044804313,1e-08,144.66,144.65,74.352574]
[1727044804481,0.0899077,144.7,144.69,7.03679]
[1727044804682,0.0899077,144.7,144.69,50.813674]
[1727044805100,0.0899077,144.7,144.69,30.813674]
[1727044805308,0.0899077,144.7,144.69,7.03679]
[1727044805473,0.0899077,144.7,144.69,31.41127538]
[1727044805789,0.0899077,144.7,144.69,51.41148092]
[1727044806104,0.0899077,144.78,144.77,6.9075]
[1727044806307,0.0899077,144.78,144.77,52.31616723]
[1727044806665,0.0899077,144.78,144.77,0.12549]
[1727044806894,0.0899077,144.78,144.71,17.2753]
[1727044807071,0.0899077,144.78,144.74,6.9089]
[1727044807274,0.0899077,144.78,144.69,6.254]
[1727044807466,0.0899077,144.78,144.66,17.2813]
[1727044807672,0.0899077,144.78,144.59,34.5789]
[1727044807673,6.9091,144.74,144.63,6.9139]
[1727044807897,6.9091,144.74,144.61,23.541]
[1727044808492,20.0899077,144.78,144.65,17.2827]
[1727044808691,0.0899077,144.78,144.7,6.9106]
[1727044808895,0.0899077,144.78,144.71,6.9101]
[1727044809077,0.0899077,144.78,144.69,17.2778]
[1727044809078,0.0899077,144.78,144.73,6.9093]
[1727044809390,0.0899077,144.78,144.75,0.12549]
[1727044809595,0.0899077,144.78,144.75,7.03369]
[1727044809976,0.0899077,144.78,144.77,23.902374]
[1727044810215,0.0899077,144.78,144.75,0.12549]
[1727044810535,0.0899077,144.78,144.77,44.027864]
[1727044810701,0.0899077,144.78,144.77,61.296564]
[1727044810908,0.5704212,144.83,144.82,27.03059]
[1727044811231,0.5704212,144.83,144.78,0.12549]
[1727044811728,7.1442212,144.83,144.69,6.911]
[1727044812032,7.1442212,144.83,144.67,6.254]
[1727044812197,7.1442212,144.83,144.71,17.2756]
[1727044812529,6.9067,144.79,144.71,17.2756]
[1727044813228,7.1442212,144.83,144.71,17.2756]
[1727044813407,0.5704212,144.83,144.75,17.271]
[1727044813609,0.5704212,144.83,144.8,6.9059]
[1727044813928,0.5704212,144.83,144.79,23.776884]
[1727044814106,0.5704212,144.83,144.8,0.25098]
[1727044814426,0.5704212,144.83,144.82,41.290664]
[1727044815005,0.5704212,144.83,144.82,61.290664]
[1727044815220,0.5704212,144.83,144.82,17.38829]
[1727044815524,0.5704212,144.83,144.82,61.290664]
[1727044815821,0.0899077,144.87,144.86,30.931064]
[1727044816323,0.0899077,144.87,144.86,50.931064]
[1727044816537,0.5704212,144.92,144.91,44.27829]
[1727044816836,0.5704212,144.92,144.91,68.055174]
[1727044817201,0.5704212,144.92,144.91,61.154374]
[1727044817402,0.5704212,144.92,144.87,24.1588]
[1727044817617,7.4708212,144.92,144.83,17.2612]
[1727044817941,6.901,144.91,144.83,17.2612]
[1727044818224,0.5704212,144.92,144.81,22.2545]
[1727044818454,0.5704212,144.92,144.85,17.2584]
[1727044818723,0.5704212,144.92,144.86,38.23610825]
[1727044818923,0.5704212,144.92,144.9,6.9012]
[1727044819132,0.5704212,144.92,144.88,17.2549]
[1727044819428,0.5704212,144.92,144.9,30.803574]
[1727044819835,0.5704212,144.92,144.91,20.12549]
[1727044820001,0.5704212,144.92,144.91,43.902374]
[1727044820827,0.5704212,144.92,144.91,23.902374]
[1727044821025,0.5704212,144.92,144.91,44.33754691]
[1727044821330,0.5704212,144.92,144.91,43.902374]
[1727044821713,0.0899077,144.95,144.94,68.050274]
[1727044822329,0.0899077,144.95,144.94,17.37399]
[1727044822714,0.0899077,144.95,144.92,44.027864]
[1727044822933,0.0899077,144.95,144.92,0.12549]
[1727044823237,0.0899077,144.95,144.86,6.3063]
[1727044823697,0.0899077,144.95,144.9,6.9008]
[1727044823903,0.0899077,144.95,144.86,6.3063]
[1727044824100,6.8994,144.94,144.86,6.3063]
[1727044824321,0.0899077,144.95,144.85,17.2583]
[1727044824734,0.0899077,144.95,144.89,6.9016]
[1727044825105,0.0899077,144.95,144.88,17.2554]
[1727044825314,0.0899077,144.95,144.89,6.9013]
[1727044825708,0.0899077,144.95,144.9,20.0]
[1727044826333,6.8999,144.93,144.87,17.2558]
[1727044826542,0.0899077,144.95,144.83,24.1649]
[1727044826840,0.0899077,144.95,144.86,17.2578]
[1727044826841,6.5884,144.94,144.86,17.2578]
[1727044827142,0.0899077,144.95,144.89,6.9016]
[1727044827818,0.0899077,144.95,144.94,6.8994]
[1727044828026,0.0899077,144.95,144.94,32.30315454]
[1727044828228,0.0899077,144.95,144.94,30.927264]
[1727044828527,0.0899077,144.95,144.94,50.927264]
[1727044828911,0.0899077,144.95,144.94,7.02489]
[1727044829108,0.0899077,144.95,144.94,7.15038]
[1727044829423,0.0899077,144.95,144.94,50.927264]
[1727044829610,0.0899077,144.95,144.94,27.15038]
[1727044829946,0.5704212,145.0,144.99,24.1395]
[1727044830240,0.5704212,145.0,144.99,48.041874]
[1727044830436,0.5704212,145.0,144.99,24.1395]
[1727044830811,0.5704212,145.0,144.99,48.041874]
[1727044831120,0.5704212,145.0,144.99,68.041874]
[1727044831713,0.5704212,145.0,144.99,44.1395]
[1727044831910,0.5704212,145.0,144.96,24.144]
[1727044832109,0.5704212,145.0,144.97,20.0]
[1727044832732,0.5704212,145.0,144.93,17.2496]
[1727044832909,6.8975,144.98,144.92,6.9002]
[1727044833112,0.5704212,145.0,144.92,34.5002]
[1727044833534,0.5704212,145.0,144.99,6.897]
[1727044833912,0.5704212,145.0,144.98,24.1399]
[1727044834239,0.5704212,145.0,144.92,34.5002]
[1727044834436,0.5704212,145.0,144.96,6.898]
[1727044834731,0.5704212,145.0,144.96,17.245]
[1727044835031,0.5704212,145.0,144.98,17.2426]
[1727044835230,0.5704212,145.0,144.98,24.14]
[1727044835446,0.5704212,145.0,144.98,17.2426]
[1727044835735,0.5704212,145.0,144.95,24.1461]
[1727044836030,1.01521989,145.0,144.91,17.2509]
[1727044836213,0.5704212,145.0,144.91,17.2509]
[1727044836418,6.8975,144.98,144.92,6.9002]
[1727044836611,1.01521989,145.0,144.91,17.2509]
[1727044836817,6.8989,144.95,144.88,24.1573]
[1727044837329,0.5704212,145.0,144.91,17.2516]
[1727044838120,0.5704212,145.0,144.92,6.9003]
[1727044838423,0.5704212,145.0,144.91,17.2516]
[1727044839015,0.5704212,145.0,144.9,0.12549]
[1727044839016,0.5704212,145.0,144.94,17.2485]
[1727044839719,0.5704212,145.0,144.94,24.1478]
[1727044839720,7.4669212,145.0,144.94,24.1478]
[1727044839916,7.4669212,145.0,144.94,17.2485]
[1727044839917,0.5704212,145.0,144.94,17.2485]
[1727044840117,0.5704212,145.0,144.84,22.7892]
[1727044840118,0.44479869,144.99,144.84,22.7892]
[1727044840318,6.899,144.95,144.88,6.9017]
[1727044841143,0.5704212,145.0,144.9,6.9012]
[1727044841312,7.4669212,145.0,144.94,6.8993]
[1727044841512,7.4669212,145.0,144.93,6.8998]
[1727044842218,7.4669212,145.0,144.92,17.2505]
[1727044842219,7.34179869,144.99,144.92,17.2505]
[1727044842433,0.44479869,144.98,144.92,17.2505]
[1727044842733,6.8994,144.94,144.88,6.9018]
[1727044842917,6.8994,144.94,144.84,22.7892]
[1727044842918,6.1098,144.96,144.89,17.2542]
[1727044843125,0.5704212,145.0,144.86,36.85645546]
[1727044843348,0.5704212,145.0,144.89,36.85645546]
[1727044843514,0.5704212,145.0,144.96,6.8981]
[1727044843915,0.5704212,145.0,144.93,17.2487]
[1727044844128,0.5704212,145.0,144.93,24.1481]
[1727044844129,6.8971,144.99,144.93,24.1481]
[1727044844328,7.4670212,145.0,144.93,17.2487]
[1727044845039,7.4670212,145.0,144.93,24.1483]
[1727044845217,7.4670212,145.0,144.94,6.8993]
[1727044845613,0.5704212,145.0,144.95,17.2464]
[1727044845833,0.5704212,145.0,144.96,6.8982]
[1727044846135,0.5704212,145.0,144.95,24.1452]
[1727044846519,0.5704212,145.0,144.95,17.2464]
[1727044846717,0.5704212,145.0,144.96,6.898]
[1727044847132,0.5704212,145.0,144.97,6.8979]
[1727044847520,0.5704212,145.0,144.95,17.2464]
[1727044847521,0.5704212,145.0,144.98,6.8974]
[1727044848054,0.5704212,145.0,144.96,6.898]
[1727044848425,0.5704212,145.0,144.99,50.924864]
[1727044848739,0.5704212,145.0,144.99,52.30333395]
[1727044849127,0.0899077,145.04,145.03,68.160764]
[1727044849389,0.0899077,145.04,145.03,44.25839]
[1727044849665,0.0899077,145.04,145.03,68.035274]
[1727044850037,0.0899077,145.04,145.03,44.25839]
[1727044850223,0.0899077,145.04,145.03,24.1329]
[1727044852635,0.0899077,145.04,145.03,44.38388]
[1727044853229,0.0899077,145.04,145.03,44.25839]
[1727044853855,0.0899077,145.04,145.03,24.1329]
[1727044854348,0.0899077,145.04,145.03,17.2378]
[1727044854572,0.0899077,145.04,145.03,24.1329]
[1727044855237,0.0899077,145.04,145.03,17.2378]
[1727044855442,0.0899077,145.04,145.0,17.2413]
[1727044855763,0.0899077,145.04,145.03,24.1329]
[1727044856842,0.0899077,145.04,145.03,68.160764]
[1727044857041,0.0899077,145.04,145.03,74.439564]
[1727044858441,0.0899077,145.04,145.03,74.314074]
[1727044859051,0.0899077,145.04,145.03,50.4117]
[1727044859742,7.7e-06,145.04,145.03,50.4117]
[1727044860455,0.5704212,145.09,145.08,78.83918]
[1727044860664,0.5704212,145.09,145.08,102.616064]